[Event "GER-chT Youth Countries 2019"]
[Site "Wuerzburg"]
[Date "2019.10.02"]
[Round "1"]
[White "Schmekel, Florian"]
[Black "Pallas, Sebastian"]
[Result "1/2-1/2"]
[ECO "D87"]
[WhiteElo "2102"]
[BlackElo "2291"]
[Annotator "NA"]
[PlyCount "80"]
[EventDate "2019.10.02"]
[EventType "swiss"]
[EventRounds "7"]
[EventCountry "GER"]
[SourceTitle "playchess.com"]
[Source "ChessBase"]
[SourceQuality "1"]
[WhiteTeam "Mecklenburg-Vorpommern"]
[BlackTeam "Sachsen-Anhalt"]
[WhiteTeamCountry "GER"]
[BlackTeamCountry "GER"]
[TimeControl "40/5400+30:1800+30"]

1. d4 {[%emt 0:00:00]} Nf6 {[%emt 0:00:00]} 2. c4 {[%emt 0:00:00]} g6 {[%emt 0:00:44]} 3. Nc3 {[%emt 0:00:00]} d5 {[%emt 0:00:21]} 4. cxd5 {[%emt 0:00:00]} Nxd5 {[%emt 0:00:09]} 5. e4 {[%emt 0:00:01]} Nxc3 {[%emt 0:00:49]} 6. bxc3 {[%emt 0:00:08]} Bg7 {[%emt 0:00:53]} 7. Bc4 {[%emt 0:00:12]} O-O {[%emt 0:01:47]} 8. Ne2 {[%emt 0:00:23]} c5 {[%emt 0:01:44]} 9. O-O {[%emt 0:00:58]} Qc7 {[%emt 0:07:29]} 10. Bd3 {[%emt 0:06:53]} Rd8 {[%emt 0:08:02]} 11. Be3 {[%emt 0:03:19]} Nc6 {[%emt 0:02:26]} 12. Rc1 {[%emt 0:01:53]} Na5 {[%emt 0:14:16]} 13. Qd2 {[%emt 0:07:07]} b6 {[%emt 0:02:05]} 14. Rfd1 {[%emt 0:05:18]} e5 {[%emt 0:00:43]} 15. d5 {[%emt 0:18:48]} Nb7 {[%emt 0:02:25]} 16. c4 {[%emt 0:03:23]} Nd6 {[%emt 0:00:14]} 17. a4 {[%emt 0:11:44]} f5 {[%emt 0:03:52]} 18. f3 {[%emt 0:04:43]} f4 {[%emt 0:15:59]} 19. Bf2 {[%emt 0:00:28]} g5 {[%emt 0:00:55]} 20. g4 {[%emt 0:05:38]} h5 {[%emt 0:03:21]} 21. h3 {[%emt 0:04:04]} Kf7 {[%emt 0:05:06]} 22. Nc3 {[%emt 0:03:25]} Bd7 {[%emt 0:07:47]} 23. Kg2 {[%emt 0:08:43]} Rh8 {[%emt 0:00:17]} 24. Be2 {[%emt 0:02:11]} Rh6 {[%emt 0:02:08]} 25. Rh1 {[%emt 0:01:14]} Rah8 {[%emt 0:01:18]} 26. Qa2 {[%emt 0:04:11]} a5 {[%emt 0:11:44]} 27. Nb1 {[%emt 0:02:23]} Ne8 {[%emt 0:01:47]} 28. Nd2 {[%emt 0:01:49]} Nf6 {[%emt 0:00:31]} 29. Qb2 {[%emt 0:00:55]} Bxa4 {[%emt 0:00:42]} 30. Rb1 {[%emt 0:00:50]} Ne8 {[%emt 0:00:52]} 31. Nf1 {[%emt 0:01:32]} Bd7 {[%emt 0:01:25]} 32. Nh2 {[%emt 0:00:10]} Qc8 {[%emt 0:00:40]} 33. Be1 {[%emt 0:00:47]} Qc7 {[%emt 0:02:06]} 34. Bc3 {[%emt 0:00:26]} Qd6 {[%emt 0:00:08]} 35. Nf1 {[%emt 0:01:09]} Nc7 {[%emt 0:00:18]} 36. Nd2 {[%emt 0:00:23]} Ra8 {[%emt 0:00:13]} 37. Nb3 {[%emt 0:00:48]} Ra7 {[%emt 0:01:05]} 38. Nc1 {[%emt 0:00:27]} Ra8 {[%emt 0:00:51]} 39. Nd3 {[%emt 0:00:28]} Re8 {[%emt 0:00:02]} 40. Qa1 {[%emt 0:02:07]} Na6 {[%emt 0:00:31] normal} 1/2-1/2

[Event "GER-chT Youth Countries 2019"]
[Site "Wuerzburg"]
[Date "2019.10.02"]
[Round "1"]
[White "Grund, Sebastian"]
[Black "Eilenberg, Jonas"]
[Result "1/2-1/2"]
[ECO "D02"]
[WhiteElo "2054"]
[BlackElo "2050"]
[Annotator "NA"]
[PlyCount "88"]
[EventDate "2019.10.02"]
[EventType "swiss"]
[EventRounds "7"]
[EventCountry "GER"]
[SourceTitle "playchess.com"]
[Source "ChessBase"]
[SourceQuality "1"]
[WhiteTeam "Thüringen"]
[BlackTeam "Berlin"]
[WhiteTeamCountry "GER"]
[BlackTeamCountry "GER"]
[TimeControl "40/5400+30:1800+30"]

1. d4 {[%emt 0:00:00]} d5 {[%emt 0:00:00]} 2. Nf3 {[%emt 0:00:00]} e6 {[%emt 0:00:14]} 3. c4 {[%emt 0:00:03]} c6 {[%emt 0:00:07]} 4. g3 {[%emt 0:00:06]} Nf6 {[%emt 0:00:15]} 5. Bg2 {[%emt 0:00:10]} dxc4 {[%emt 0:00:29]} 6. a4 {[%emt 0:00:43]} c5 {[%emt 0:02:33]} 7. O-O {[%emt 0:02:21]} Nc6 {[%emt 0:01:28]} 8. dxc5 {[%emt 0:14:27]} Qxd1 {[%emt 0:00:33]} 9. Rxd1 {[%emt 0:00:05]} Bxc5 {[%emt 0:00:06]} 10. Nbd2 {[%emt 0:00:44]} c3 {[%emt 0:13:16]} 11. bxc3 {[%emt 0:00:09]} Bd7 {[%emt 0:01:35]} 12. Ng5 {[%emt 0:10:25]} Rd8 {[%emt 0:13:41]} 13. Nde4 {[%emt 0:03:06]} Be7 {[%emt 0:01:47]} 14. Nd6+ {[%emt 0:22:45]} Bxd6 {[%emt 0:00:17]} 15. Rxd6 {[%emt 0:00:06]} h6 {[%emt 0:03:58]} 16. Ne4 {[%emt 0:01:17]} Nxe4 {[%emt 0:04:29]} 17. Bxe4 {[%emt 0:00:07]} Bc8 {[%emt 0:01:00]} 18. Ba3 {[%emt 0:01:37]} Rxd6 {[%emt 0:00:14]} 19. Bxd6 {[%emt 0:00:08]} f5 {[%emt 0:00:46]} 20. Bf3 {[%emt 0:01:04]} Kf7 {[%emt 0:04:17]} 21. Bc5 {[%emt 0:05:56]} Bd7 {[%emt 0:06:33]} 22. Rd1 {[%emt 0:07:06]} Be8 {[%emt 0:04:30]} 23. Rd6 {[%emt 0:11:03]} b6 {[%emt 0:06:29]} 24. Bxc6 {[%emt 0:01:19]} bxc5 {[%emt 0:00:47]} 25. Bxe8+ {[%emt 0:00:24]} Rxe8 {[%emt 0:00:05]} 26. Rc6 {[%emt 0:00:06]} Re7 {[%emt 0:01:23]} 27. Rxc5 {[%emt 0:00:25]} Rd7 {[%emt 0:00:05]} 28. f4 {[%emt 0:01:50]} Ke7 {[%emt 0:01:33]} 29. Kf2 {[%emt 0:00:54]} Kd6 {[%emt 0:00:58]} 30. Rc4 {[%emt 0:00:07]} Rb7 {[%emt 0:00:23]} 31. Ke3 {[%emt 0:01:15]} g5 {[%emt 0:02:14]} 32. Rb4 {[%emt 0:02:44]} Rg7 {[%emt 0:03:32]} 33. fxg5 {[%emt 0:04:56]} hxg5 {[%emt 0:00:12]} 34. h4 {[%emt 0:01:03]} f4+ {[%emt 0:02:17]} 35. gxf4 {[%emt 0:01:58]} gxh4 {[%emt 0:00:06]} 36. Rd4+ {[%emt 0:00:10]} Kc5 {[%emt 0:05:08]} 37. f5 {[%emt 0:00:45]} h3 {[%emt 0:04:34]} 38. Rh4 {[%emt 0:03:46]} exf5 {[%emt 0:02:57]} 39. Rxh3 {[%emt 0:00:09]} Kc4 {[%emt 0:01:15]} 40. Kf4 {[%emt 0:04:03]} Re7 {[%emt 0:01:24]} 41. e3 {[%emt 0:08:29]} Kxc3 {[%emt 0:02:12]} 42. e4+ {[%emt 0:00:14]} Kb4 {[%emt 0:00:04]} 43. exf5 {[%emt 0:00:09]} Kxa4 {[%emt 0:00:41]} 44. f6 {[%emt 0:00:08]} Re8 {[%emt 0:01:51] normal} 1/2-1/2

[Event "GER-chT Youth Countries 2019"]
[Site "Wuerzburg"]
[Date "2019.10.02"]
[Round "1"]
[White "Gutkin, Ilya"]
[Black "Schallner, Marc"]
[Result "1/2-1/2"]
[ECO "A06"]
[WhiteElo "2047"]
[BlackElo "2027"]
[Annotator "NA"]
[PlyCount "44"]
[EventDate "2019.10.02"]
[EventType "team-tourn"]
[EventRounds "7"]
[EventCountry "GER"]
[SourceTitle "playchess.com"]
[Source "ChessBase"]
[SourceQuality "1"]
[WhiteTeam "Germany"]
[BlackTeam "Germany"]
[WhiteTeamCountry "GER"]
[BlackTeamCountry "GER"]
[TimeControl "40/5400+30:1800+30"]

1. Nf3 {[%emt 0:00:00]} d5 {[%emt 0:00:00]} 2. c4 {[%emt 0:00:02]} c6 {[%emt 0:00:00]} 3. g3 {[%emt 0:00:15]} Nf6 {[%emt 0:00:35]} 4. Bg2 {[%emt 0:00:09]} Bg4 {[%emt 0:01:21]} 5. Ne5 {[%emt 0:01:31]} e6 {[%emt 0:12:23]} 6. cxd5 {[%emt 0:06:19]} exd5 {[%emt 0:01:05]} 7. Nxg4 {[%emt 0:00:17]} Nxg4 {[%emt 0:00:49]} 8. O-O {[%emt 0:01:43]} Nf6 {[%emt 0:03:43]} 9. d3 {[%emt 0:01:03]} Be7 {[%emt 0:01:09]} 10. Qc2 {[%emt 0:14:45]} Nbd7 {[%emt 0:04:19]} 11. e4 {[%emt 0:01:16]} O-O {[%emt 0:02:55]} 12. Nc3 {[%emt 0:01:52]} dxe4 {[%emt 0:06:32]} 13. dxe4 {[%emt 0:00:07]} Re8 {[%emt 0:03:52]} 14. Rd1 {[%emt 0:10:56]} Bc5 {[%emt 0:08:16]} 15. h3 {[%emt 0:14:48]} Qe7 {[%emt 0:05:09]} 16. a3 {[%emt 0:06:40]} a5 {[%emt 0:04:49]} 17. Bf4 {[%emt 0:06:33]} Nh5 {[%emt 0:08:07]} 18. Qd2 {[%emt 0:05:05]} Nxf4 {[%emt 0:03:03]} 19. Qxd7 {[%emt 0:05:40]} Ne6 {[%emt 0:05:28]} 20. Qxe7 {[%emt 0:01:21]} Rxe7 {[%emt 0:01:00]} 21. Rd2 {[%emt 0:03:02]} Ree8 {[%emt 0:10:16]} 22. Rad1 {[%emt 0:07:16]} Red8 {[%emt 0:01:13] normal} 1/2-1/2

[Event "GER-chT Youth Countries 2019"]
[Site "Wuerzburg"]
[Date "2019.10.02"]
[Round "1"]
[White "Haack, Kevin"]
[Black "Kobald, Jacqueline"]
[Result "1-0"]
[ECO "A15"]
[WhiteElo "2044"]
[BlackElo "1884"]
[Annotator "NA"]
[PlyCount "82"]
[EventDate "2019.10.02"]
[EventType "swiss"]
[EventRounds "7"]
[EventCountry "GER"]
[SourceTitle "playchess.com"]
[Source "ChessBase"]
[SourceQuality "1"]
[WhiteTeam "Hessen"]
[BlackTeam "Württemberg"]
[WhiteTeamCountry "GER"]
[BlackTeamCountry "GER"]
[TimeControl "40/5400+30:1800+30"]

1. c4 {[%emt 0:00:00]} Nf6 {[%emt 0:00:00]} 2. g3 {[%emt 0:00:00]} g6 {[%emt 0:00:00]} 3. Bg2 {[%emt 0:00:00]} Bg7 {[%emt 0:00:11]} 4. Nf3 {[%emt 0:00:04]} O-O {[%emt 0:00:22]} 5. O-O {[%emt 0:00:07]} d6 {[%emt 0:05:22]} 6. b3 {[%emt 0:00:21]} e5 {[%emt 0:01:22]} 7. Bb2 {[%emt 0:00:30]} c6 {[%emt 0:05:20]} 8. d3 {[%emt 0:02:55]} Re8 {[%emt 0:03:12]} 9. Nbd2 {[%emt 0:08:09]} Nbd7 {[%emt 0:02:44]} 10. Ne4 {[%emt 0:09:31]} Nxe4 {[%emt 0:27:38]} 11. dxe4 {[%emt 0:00:11]} Nc5 {[%emt 0:00:49]} 12. Qc2 {[%emt 0:03:43]} f5 {[%emt 0:02:18]} 13. Nd2 {[%emt 0:02:02]} Be6 {[%emt 0:06:33]} 14. exf5 {[%emt 0:01:48]} gxf5 {[%emt 0:00:35]} 15. e4 {[%emt 0:00:32]} Qg5 {[%emt 0:01:53]} 16. b4 {[%emt 0:04:11]} Na6 {[%emt 0:03:19]} 17. a3 {[%emt 0:00:38]} Rad8 {[%emt 0:01:40]} 18. Rad1 {[%emt 0:02:36]} Qg6 {[%emt 0:13:28]} 19. Rfe1 {[%emt 0:04:32]} Rf8 {[%emt 0:02:11]} 20. exf5 {[%emt 0:06:04]} Bxf5 {[%emt 0:00:30]} 21. Be4 {[%emt 0:00:09]} d5 {[%emt 0:05:54]} 22. cxd5 {[%emt 0:15:28]} cxd5 {[%emt 0:03:17]} 23. Qb3 {[%emt 0:01:33]} Kh8 {[%emt 0:01:47]} 24. Bxf5 {[%emt 0:04:09]} Qxf5 {[%emt 0:00:11]} 25. Qe3 {[%emt 0:01:46]} Rde8 {[%emt 0:06:07]} 26. Qxa7 {[%emt 0:04:52]} d4 {[%emt 0:02:01]} 27. Ne4 {[%emt 0:00:52]} Rb8 {[%emt 0:00:41]} 28. Qb6 {[%emt 0:00:58]} Qf3 {[%emt 0:01:19]} 29. Rd2 {[%emt 0:04:09]} Rfc8 {[%emt 0:01:22]} 30. Qb5 {[%emt 0:02:10]} h6 {[%emt 0:01:37]} 31. Rd3 {[%emt 0:03:11]} Qf8 {[%emt 0:00:54]} 32. Rc1 {[%emt 0:02:31]} Rxc1+ {[%emt 0:00:19]} 33. Bxc1 {[%emt 0:00:06]} Nc7 {[%emt 0:00:50]} 34. Qc5 {[%emt 0:02:22]} Qd8 {[%emt 0:00:36]} 35. Qd6 {[%emt 0:03:13]} Qxd6 {[%emt 0:00:12]} 36. Nxd6 {[%emt 0:00:07]} Nd5 {[%emt 0:00:36]} 37. f4 {[%emt 0:03:13]} exf4 {[%emt 0:00:40]} 38. Bxf4 {[%emt 0:00:13]} Nxf4 {[%emt 0:00:11]} 39. gxf4 {[%emt 0:00:05]} b6 {[%emt 0:00:48]} 40. Nf5 {[%emt 0:01:52]} Rd8 {[%emt 0:00:32]} 41. Kg2 {[%emt 0:31:12]} Kh7 {[%emt 0:07:23] normal} 1-0

[Event "GER-chT Youth Countries 2019"]
[Site "Wuerzburg"]
[Date "2019.10.02"]
[Round "1"]
[White "Arnhold, Steffi"]
[Black "Schiewe, Nadin"]
[Result "1-0"]
[ECO "B01"]
[WhiteElo "2042"]
[BlackElo "1593"]
[Annotator "NA"]
[PlyCount "82"]
[EventDate "2019.10.02"]
[EventType "swiss"]
[EventRounds "7"]
[EventCountry "GER"]
[SourceTitle "playchess.com"]
[Source "ChessBase"]
[SourceQuality "1"]
[WhiteTeam "Sachsen"]
[BlackTeam "Brandenburg/Berlin"]
[WhiteTeamCountry "GER"]
[BlackTeamCountry "GER"]
[TimeControl "40/5400+30:1800+30"]

1. e4 {[%emt 0:00:00]} d5 {[%emt 0:00:00]} 2. exd5 {[%emt 0:00:00]} Qxd5 {[%emt 0:00:00]} 3. Nc3 {[%emt 0:00:09]} Qa5 {[%emt 0:00:00]} 4. d4 {[%emt 0:00:31]} c6 {[%emt 0:00:13]} 5. Nf3 {[%emt 0:01:57]} Nf6 {[%emt 0:00:24]} 6. Bc4 {[%emt 0:04:52]} Bf5 {[%emt 0:02:28]} 7. O-O {[%emt 0:05:58]} e6 {[%emt 0:01:01]} 8. Re1 {[%emt 0:04:45]} Bd6 {[%emt 0:03:46]} 9. Bd2 {[%emt 0:15:37]} Qc7 {[%emt 0:02:36]} 10. h3 {[%emt 0:08:02]} O-O {[%emt 0:02:54]} 11. Nh4 {[%emt 0:02:43]} Nbd7 {[%emt 0:05:20]} 12. Nxf5 {[%emt 0:01:10]} exf5 {[%emt 0:00:10]} 13. Qf3 {[%emt 0:01:33]} g6 {[%emt 0:09:00]} 14. Bb3 {[%emt 0:04:24]} Nb6 {[%emt 0:06:04]} 15. Bg5 {[%emt 0:03:54]} Ne8 {[%emt 0:05:28]} 16. Rad1 {[%emt 0:19:26]} a6 {[%emt 0:23:10]} 17. Ne2 Be7 {[%emt 0:00:30]} 18. Bh6 {[%emt 0:04:38]} Ng7 {[%emt 0:00:49]} 19. Nf4 {[%emt 0:00:18]} Bf6 {[%emt 0:07:02]} 20. Qg3 {[%emt 0:04:01]} Rac8 {[%emt 0:09:32]} 21. c3 {[%emt 0:00:37]} Rfd8 {[%emt 0:00:30]} 22. Re8+ {[%emt 0:04:28]} Rxe8 {[%emt 0:03:38]} 23. Nh5 {[%emt 0:00:30]} Qe7 {[%emt 0:04:35]} 24. Nxf6+ {[%emt 0:00:46]} Qxf6 {[%emt 0:00:07]} 25. Bg5 {[%emt 0:00:05]} f4 {[%emt 0:01:34]} 26. Qxf4 {[%emt 0:00:44]} Qxf4 {[%emt 0:00:44]} 27. Bxf4 {[%emt 0:00:05]} Re2 {[%emt 0:00:31]} 28. Bd2 {[%emt 0:00:48]} a5 {[%emt 0:02:03]} 29. Kf1 {[%emt 0:00:15]} Re7 {[%emt 0:01:50]} 30. a3 {[%emt 0:01:14]} a4 {[%emt 0:01:13]} 31. Ba2 Rd7 {[%emt 0:02:47]} 32. Ke2 {[%emt 0:07:47]} Kf8 {[%emt 0:01:15]} 33. Bc1 {[%emt 0:01:06]} Ke7 {[%emt 0:01:01]} 34. Bb1 {[%emt 0:01:10]} f5 {[%emt 0:00:48]} 35. Bc2 {[%emt 0:00:11]} c5 {[%emt 0:02:02]} 36. dxc5 {[%emt 0:00:44]} Rxd1 {[%emt 0:01:08]} 37. Bxd1 {[%emt 0:00:09]} Ne6 {[%emt 0:00:08]} 38. Be3 {[%emt 0:00:30]} Nxc5 {[%emt 0:00:30]} 39. Bd4 {[%emt 0:00:45]} Nbd7 {[%emt 0:01:53]} 40. Ke3 {[%emt 0:01:22]} b5 {[%emt 0:00:00]} 41. Be2 {[%emt 0:00:26]} Kd6 {normal} 1-0

[Event "GER-chT Youth Countries 2019"]
[Site "Wuerzburg"]
[Date "2019.10.02"]
[Round "1"]
[White "Pahl, Theis"]
[Black "Knuedel, Torben"]
[Result "0-1"]
[ECO "C84"]
[WhiteElo "2022"]
[BlackElo "2193"]
[Annotator "NA"]
[PlyCount "62"]
[EventDate "2019.10.02"]
[EventType "team-tourn"]
[EventRounds "7"]
[EventCountry "GER"]
[SourceTitle "playchess.com"]
[Source "ChessBase"]
[SourceQuality "1"]
[WhiteTeam "Germany"]
[BlackTeam "Germany"]
[WhiteTeamCountry "GER"]
[BlackTeamCountry "GER"]
[TimeControl "40/5400+30:1800+30"]

1. e4 {[%emt 0:00:00]} e5 {[%emt 0:00:00]} 2. Nf3 {[%emt 0:04:07]} Nc6 {[%emt 0:00:00]} 3. Bb5 {[%emt 0:00:05]} a6 {[%emt 0:00:04]} 4. Ba4 {[%emt 0:00:03]} Nf6 {[%emt 0:00:04]} 5. O-O {[%emt 0:00:04]} Be7 {[%emt 0:00:05]} 6. d3 {[%emt 0:00:04]} d6 {[%emt 0:00:06]} 7. c3 {[%emt 0:00:24]} O-O {[%emt 0:00:06]} 8. Re1 {[%emt 0:00:47]} b5 {[%emt 0:00:04]} 9. Bc2 {[%emt 0:07:58]} d5 {[%emt 0:00:05]} 10. Nbd2 {[%emt 0:00:26]} d4 {[%emt 0:00:15]} 11. Nb3 {[%emt 0:05:36]} Bg4 {[%emt 0:04:10]} 12. h3 {[%emt 0:04:24]} Bh5 {[%emt 0:00:07]} 13. cxd4 {[%emt 0:03:28]} Bb4 {[%emt 0:14:14]} 14. Rf1 {[%emt 0:04:52]} exd4 {[%emt 0:02:41]} 15. g4 {[%emt 0:06:51]} Nxg4 {[%emt 0:03:07]} 16. hxg4 {[%emt 0:01:57]} Bxg4 {[%emt 0:00:14]} 17. Kg2 {[%emt 0:07:47]} f5 {[%emt 0:07:00]} 18. e5 {[%emt 0:18:53]} Nxe5 {[%emt 0:09:17]} 19. Nxe5 {[%emt 0:00:10]} Bxd1 {[%emt 0:00:07]} 20. Bxd1 {[%emt 0:00:03]} f4 {[%emt 0:07:41]} 21. Nf3 {[%emt 0:01:45]} Qd7 {[%emt 0:08:32]} 22. Rh1 {[%emt 0:02:21]} Rae8 {[%emt 0:03:07]} 23. a3 {[%emt 0:01:28]} Be7 {[%emt 0:07:31]} 24. Nbd2 {[%emt 0:09:28]} g5 {[%emt 0:03:43]} 25. Ne4 {[%emt 0:02:04]} c5 {[%emt 0:02:20]} 26. Bb3+ {[%emt 0:08:42]} c4 {[%emt 0:01:06]} 27. Bd1 {[%emt 0:00:50]} Bd8 {[%emt 0:02:13]} 28. Kf1 {[%emt 0:00:54]} g4 {[%emt 0:02:03]} 29. Nfg5 {[%emt 0:01:12]} Bxg5 {[%emt 0:01:03]} 30. Nxg5 {[%emt 0:00:03]} Qf5 {[%emt 0:01:00]} 31. Nxh7 {[%emt 0:01:17]} Rf7 {normal} 0-1

[Event "GER-chT Youth Countries 2019"]
[Site "Wuerzburg"]
[Date "2019.10.02"]
[Round "1"]
[White "Nguyen, Ha Thanh"]
[Black "Kluehs, Gustaf"]
[Result "1-0"]
[ECO "B33"]
[WhiteElo "1998"]
[BlackElo "1902"]
[Annotator "NA"]
[PlyCount "109"]
[EventDate "2019.10.02"]
[EventType "swiss"]
[EventRounds "7"]
[EventCountry "GER"]
[SourceTitle "playchess.com"]
[Source "ChessBase"]
[SourceQuality "1"]
[WhiteTeam "Thüringen"]
[BlackTeam "Berlin"]
[WhiteTeamCountry "GER"]
[BlackTeamCountry "GER"]
[TimeControl "40/5400+30:1800+30"]

1. e4 {[%emt 0:00:00]} c5 {[%emt 0:00:00]} 2. Nf3 {[%emt 0:00:00]} Nc6 {[%emt 0:00:00]} 3. d4 {[%emt 0:00:00]} cxd4 {[%emt 0:00:00]} 4. Nxd4 {[%emt 0:00:00]} Nf6 {[%emt 0:00:00]} 5. Nc3 {[%emt 0:00:00]} e5 {[%emt 0:00:00]} 6. Ndb5 {[%emt 0:00:04]} d6 {[%emt 0:00:00]} 7. Bg5 {[%emt 0:00:23]} a6 {[%emt 0:00:06]} 8. Na3 {[%emt 0:00:06]} b5 {[%emt 0:00:11]} 9. Nd5 {[%emt 0:00:08]} Be7 {[%emt 0:00:05]} 10. Bxf6 {[%emt 0:00:20]} Bxf6 {[%emt 0:00:05]} 11. c4 {[%emt 0:01:14]} b4 {[%emt 0:02:46]} 12. Nc2 {[%emt 0:00:07]} a5 {[%emt 0:00:28]} 13. g3 {[%emt 0:01:07]} Bg5 {[%emt 0:00:16]} 14. Bg2 {[%emt 0:00:26]} O-O {[%emt 0:01:10]} 15. O-O {[%emt 0:00:37]} Bb7 {[%emt 0:05:35]} 16. Qd3 {[%emt 0:02:25]} Ne7 {[%emt 0:01:18]} 17. Nde3 {[%emt 0:01:25]} Bxe3 {[%emt 0:01:09]} 18. Nxe3 {[%emt 0:00:08]} Qb6 {[%emt 0:02:18]} 19. Rfd1 {[%emt 0:04:19]} Rfd8 {[%emt 0:01:11]} 20. b3 {[%emt 0:03:39]} a4 {[%emt 0:11:02]} 21. Rac1 {[%emt 0:01:40]} axb3 {[%emt 0:06:58]} 22. axb3 {[%emt 0:02:32]} Qc5 {[%emt 0:01:28]} 23. Rc2 {[%emt 0:01:44]} Ra3 {[%emt 0:02:39]} 24. Rcd2 {[%emt 0:01:22]} Nc6 {[%emt 0:06:38]} 25. Nf5 {[%emt 0:16:40]} Nd4 {[%emt 0:01:16]} 26. Nxd4 {[%emt 0:01:15]} Qxd4 {[%emt 0:00:31]} 27. Qxd4 {[%emt 0:00:56]} exd4 {[%emt 0:00:14]} 28. Rb1 {[%emt 0:00:46]} Re8 {[%emt 0:15:49]} 29. Rxd4 {[%emt 0:00:49]} f5 {[%emt 0:02:16]} 30. Rxd6 {[%emt 0:10:07]} Bxe4 {[%emt 0:03:25]} 31. Bxe4 {[%emt 0:00:38]} fxe4 {[%emt 0:00:47]} 32. Rb6 {[%emt 0:06:07]} e3 {[%emt 0:02:03]} 33. fxe3 {[%emt 0:00:12]} Rxe3 {[%emt 0:00:18]} 34. Rxb4 {[%emt 0:00:10]} Ra2 {[%emt 0:00:06]} 35. Rb8+ {[%emt 0:01:45]} Kf7 {[%emt 0:00:07]} 36. Rf1+ {[%emt 0:00:15]} Kg6 {[%emt 0:00:20]} 37. Rb6+ {[%emt 0:03:34]} Kg5 {[%emt 0:00:17]} 38. Rb5+ {[%emt 0:00:19]} Kg6 {[%emt 0:00:22]} 39. Rf2 {[%emt 0:00:28]} Ra1+ {[%emt 0:00:08]} 40. Kg2 {[%emt 0:00:10]} Rb1 {[%emt 0:01:23]} 41. Rb6+ {[%emt 0:30:32]} Kh5 {[%emt 0:30:50]} 42. b4 {[%emt 0:11:25]} Ree1 {[%emt 0:01:22]} 43. Kf3 {[%emt 0:10:36]} Rb3+ {[%emt 0:01:24]} 44. Kf4 {[%emt 0:01:43]} Rc1 {[%emt 0:01:56]} 45. c5 {[%emt 0:04:09]} Rc4+ {[%emt 0:00:24]} 46. Ke5 {[%emt 0:01:04]} Rbc3 {[%emt 0:01:30]} 47. Kd5 {[%emt 0:00:40]} g5 {[%emt 0:00:45]} 48. Rf7 {[%emt 0:02:49]} h6 {[%emt 0:00:29]} 49. Rff6 {[%emt 0:00:17]} Kg4 {[%emt 0:00:16]} 50. Rxh6 {[%emt 0:02:24]} Kf3 {[%emt 0:00:13]} 51. c6 {[%emt 0:01:51]} Rg4 {[%emt 0:01:17]} 52. Kd6 {[%emt 0:02:36]} Rd3+ {[%emt 0:00:30]} 53. Kc7 {[%emt 0:00:15]} Re4 {[%emt 0:00:26]} 54. Rh7 {[%emt 0:00:52]} Re8 {[%emt 0:01:45]} 55. Rb8 {[%emt 0:03:19] normal} 1-0

[Event "GER-chT Youth Countries 2019"]
[Site "Wuerzburg"]
[Date "2019.10.02"]
[Round "1"]
[White "Lohr, Maximilian"]
[Black "Goldbeck, Lars"]
[Result "1/2-1/2"]
[ECO "B99"]
[WhiteElo "1996"]
[BlackElo "2203"]
[Annotator "NA"]
[PlyCount "95"]
[EventDate "2019.10.02"]
[EventType "swiss"]
[EventRounds "7"]
[EventCountry "GER"]
[SourceTitle "playchess.com"]
[Source "ChessBase"]
[SourceQuality "1"]
[WhiteTeam "Bayern 2"]
[BlackTeam "Bayern 1"]
[WhiteTeamCountry "GER"]
[BlackTeamCountry "GER"]
[TimeControl "40/5400+30:1800+30"]

1. e4 {[%emt 0:00:00]} c5 {[%emt 0:01:04]} 2. Nf3 {[%emt 0:00:00]} d6 {[%emt 0:00:21]} 3. d4 {[%emt 0:00:00]} cxd4 {[%emt 0:00:04]} 4. Nxd4 {[%emt 0:00:00]} Nf6 {[%emt 0:00:04]} 5. Nc3 {[%emt 0:00:00]} a6 {[%emt 0:00:04]} 6. Bg5 {[%emt 0:00:00]} e6 {[%emt 0:00:06]} 7. f4 {[%emt 0:00:03]} Be7 {[%emt 0:00:04]} 8. Qf3 {[%emt 0:00:04]} Qc7 {[%emt 0:00:05]} 9. O-O-O {[%emt 0:00:29]} Nbd7 {[%emt 0:00:11]} 10. g4 {[%emt 0:00:07]} h6 {[%emt 0:00:08]} 11. Bxf6 {[%emt 0:01:11]} Bxf6 {[%emt 0:00:07]} 12. h4 {[%emt 0:01:17]} Qb6 {[%emt 0:00:06]} 13. Nb3 {[%emt 0:00:47]} Be7 {[%emt 0:00:46]} 14. Kb1 {[%emt 0:00:58]} Nc5 {[%emt 0:09:13]} 15. f5 {[%emt 0:09:14]} Bd7 {[%emt 0:05:51]} 16. g5 {[%emt 0:01:24]} O-O-O {[%emt 0:05:05]} 17. f6 {[%emt 0:01:46]} Bf8 {[%emt 0:04:10]} 18. Be2 {[%emt 0:05:15]} Nxb3 {[%emt 0:18:33]} 19. cxb3 {[%emt 0:05:45]} Bc6 {[%emt 0:07:22]} 20. Ka1 {[%emt 0:15:11]} Kb8 {[%emt 0:07:54]} 21. Rhg1 {[%emt 0:04:30]} hxg5 {[%emt 0:03:51]} 22. hxg5 {[%emt 0:00:28]} Rh2 {[%emt 0:03:07]} 23. Qg3 {[%emt 0:06:15]} Qf2 {[%emt 0:11:48]} 24. fxg7 {[%emt 0:03:11]} Bxg7 {[%emt 0:00:13]} 25. Rxd6 {[%emt 0:00:12]} Rxd6 {[%emt 0:02:41]} 26. Qxd6+ {[%emt 0:00:15]} Ka7 {[%emt 0:00:06]} 27. Rf1 {[%emt 0:00:44]} Qg2 {[%emt 0:08:13]} 28. Qc5+ {[%emt 0:00:55]} Ka8 {[%emt 0:05:18]} 29. Rd1 {[%emt 0:16:07]} Rh1 {[%emt 0:00:30]} 30. Qe3 {[%emt 0:02:04]} Rxd1+ {[%emt 0:01:46]} 31. Bxd1 {[%emt 0:00:27]} Qh1 {[%emt 0:01:15]} 32. Qf3 {[%emt 0:00:33]} Qg1 {[%emt 0:00:30]} 33. Qg4 {[%emt 0:02:17]} Qe3 {[%emt 0:00:21]} 34. a3 {[%emt 0:01:44]} Bxc3 {[%emt 0:01:18]} 35. bxc3 {[%emt 0:00:06]} Qxc3+ {[%emt 0:00:03]} 36. Kb1 {[%emt 0:00:27]} Qe1 {[%emt 0:00:14]} 37. Qe2 {[%emt 0:01:58]} Bxe4+ {[%emt 0:00:34]} 38. Kb2 {[%emt 0:00:05]} Qh1 {[%emt 0:01:44]} 39. Bc2 {[%emt 0:02:08]} Qh8+ {[%emt 0:00:33]} 40. Ka2 {[%emt 0:00:50]} Bd5 {[%emt 0:01:54]} 41. Bd3 {[%emt 0:32:53]} Qd4 {[%emt 0:32:40]} 42. Bxa6 {[%emt 0:06:33]} bxa6 {[%emt 0:00:00]} 43. Qxa6+ {[%emt 0:00:00]} Kb8 {[%emt 0:00:00]} 44. Qd6+ {[%emt 0:00:00]} Kc8 {[%emt 0:00:00]} 45. Qf8+ {[%emt 0:00:00]} Kb7 {[%emt 0:00:00]} 46. Qxf7+ {[%emt 0:00:00]} Kb6 {[%emt 0:00:00]} 47. Qf6 {[%emt 0:00:00]} Qd2+ {[%emt 0:00:00]} 48. Qb2 {[%emt 0:00:00] normal} 1/2-1/2